bitfinex/quotes_ETHUSD_20260109
["timestamp","ask_amount","ask_price","bid_price","bid_amount"]
[1767995403367,0.001,3079.9,3079.6,0.12987961]
[1767995403559,0.001,3079.9,3079.4,0.002]
[1767995403760,0.001,3079.9,3079.4,0.94297791]
[1767995404432,0.001,3079.9,3079.4,1.13489554]
[1767995406259,0.001,3079.9,3079.4,1.08489554]
[1767995406437,0.001,3079.9,3079.3,0.002]
[1767995407158,0.001,3079.9,3079.3,0.94297791]
[1767995407758,0.90206964,3079.9,3079.6,0.002]
[1767995408054,0.001,3079.9,3079.6,0.002]
[1767995409832,0.90206964,3079.9,3079.6,0.002]
[1767995410033,1.31694173,3079.9,3079.6,0.002]
[1767995414978,4.56381287,3079.9,3079.6,0.002]
[1767995415581,0.90106964,3079.8,3079.3,0.002]
[1767995416082,3.66274323,3079.9,3079.3,0.002]
[1767995416384,4.56381287,3079.9,3079.3,0.002]
[1767995416683,0.78105697,3079.8,3079.3,0.002]
[1767995417081,1.68212661,3079.8,3079.3,0.002]
[1767995418189,4.92909488,3079.8,3079.3,0.002]
[1767995419599,0.001,3079.6,3079.3,0.002]
[1767995423807,0.001,3079.6,3079.3,0.94297791]
[1767995430636,0.001,3079.6,3079.3,0.002]
[1767995442538,0.97922677,3079.6,3079.3,0.002]
[1767995447768,0.001,3079.6,3079.3,0.002]
[1767995457778,0.001,3079.9,3079.5,0.90655636]
[1767995457982,0.00080544,3080.2,3079.7,0.90655636]
[1767995458286,0.00080544,3080.2,3079.9,0.90655636]
[1767995458445,0.943112,3080.2,3079.8,0.255]
[1767995458653,0.941112,3080.2,3080.0,0.97396747]
[1767995459076,0.98541251,3080.5,3079.8,0.00080552]
[1767995459276,0.04210595,3080.1,3079.8,0.00080552]
[1767995459475,0.04210595,3079.9,3079.8,0.00080552]
[1767995461006,0.04010596,3079.9,3079.8,0.00080552]
[1767995461706,0.04210595,3080.1,3079.8,0.00080552]
[1767995462003,0.98441251,3080.3,3079.8,0.00080552]
[1767995463010,0.04210595,3080.1,3079.8,0.00080552]
[1767995464379,0.04210595,3079.9,3079.8,0.00080552]
[1767995465511,0.04210595,3080.1,3079.8,0.00080552]
[1767995465689,0.04210595,3080.2,3079.8,0.00080552]
[1767995465888,3.24664783,3080.1,3079.8,0.00080552]
[1767995466105,1.69986919,3080.1,3079.8,0.00080552]
[1767995467020,0.99333223,3080.0,3079.8,0.00080552]
[1767995467226,0.99333223,3080.0,3079.3,0.257]
[1767995467426,0.99333223,3080.0,3079.6,0.002]
[1767995467830,0.99433223,3080.0,3079.6,0.002]
[1767995468026,1.49757953,3080.0,3079.6,0.002]
[1767995473215,0.99433223,3080.0,3079.6,0.002]
[1767995474165,0.95122628,3079.9,3079.6,0.002]
[1767995474369,0.04210595,3079.7,3079.3,0.002]
[1767995475369,3.28918295,3079.7,3079.3,0.002]
[1767995479985,3.28918295,3079.7,3079.6,0.002]
[1767995480184,0.95122628,3079.6,3079.3,0.002]
[1767995482591,0.95222628,3079.8,3079.3,0.002]
[1767995482770,0.99433223,3079.8,3079.3,0.002]
[1767995482976,0.95122628,3079.7,3079.3,0.002]
[1767995485589,3.29008524,3079.8,3079.3,0.002]
[1767995485785,0.42413115,3079.7,3079.3,0.002]
[1767995489502,0.001,3079.8,3079.3,0.95216661]
[1767995490362,0.001,3079.8,3079.3,0.002]
[1767995491800,0.001,3079.8,3079.6,0.002]
[1767995495018,0.97636266,3079.8,3079.3,0.002]
[1767995495230,0.97536266,3079.7,3079.3,0.002]
[1767995497883,3.71674799,3079.8,3079.3,0.002]
[1767995499427,0.97536266,3079.7,3079.3,0.002]
[1767995501019,4.69211065,3079.8,3079.3,0.002]
[1767995502438,1.01746861,3079.6,3079.3,0.002]
[1767995502589,1.01746861,3079.4,3078.7,8.37e-06]
[1767995504213,1.01746861,3079.4,3079.3,0.002]
[1767995504386,1.01746861,3079.4,3078.7,8.37e-06]
[1767995504588,0.97536266,3079.3,3078.7,8.37e-06]
[1767995504918,0.42648853,3079.3,3078.7,8.37e-06]
[1767995505089,0.42648853,3079.3,3078.7,0.98671379]
[1767995509322,0.04210595,3079.6,3078.7,0.98671379]
[1767995509513,0.001,3079.8,3078.8,0.98638589]
[1767995509716,0.001,3079.8,3079.0,0.98638589]
[1767995512213,0.001,3079.8,3079.1,0.98638589]
[1767995515018,0.001,3079.8,3079.2,0.98638589]
[1767995516224,0.001,3079.8,3079.3,0.002]
[1767995516439,0.001,3079.5,3079.3,0.002]
[1767995517409,0.001,3079.8,3079.3,0.98838589]
[1767995517639,0.00080552,3080.2,3079.7,0.98638589]
[1767995521548,0.91104149,3080.2,3079.4,0.42359624]
[1767995521749,0.91104149,3080.2,3079.4,0.255]
[1767995521915,0.91023597,3080.0,3079.4,0.255]
[1767995522229,0.91023597,3080.0,3079.3,0.002]
[1767995522656,0.91023597,3079.8,3079.3,0.002]
[1767995522850,0.91023597,3079.6,3079.3,0.002]
[1767995523051,0.96268296,3079.4,3079.3,0.002]
[1767995523419,0.96268296,3079.4,3079.0,0.002]
[1767995525136,0.41994114,3079.5,3079.0,0.002]
[1767995525339,3.28899744,3079.9,3079.0,0.002]
[1767995525340,3.28899744,3079.9,3079.0,0.9211443]
[1767995525535,4.2516804,3079.9,3079.0,0.9211443]
[1767995525740,0.96268296,3079.8,3079.0,0.9211443]
[1767995526244,4.20975111,3079.8,3079.0,0.9211443]
[1767995527070,0.96268296,3079.7,3079.0,0.9211443]
[1767995527266,0.74568193,3079.6,3079.0,0.9211443]
[1767995527556,1.70836489,3079.6,3079.0,0.002]
[1767995529177,0.001,3079.5,3079.3,0.002]
[1767995532735,0.001,3079.5,3079.3,0.9211443]
[1767995535740,0.001,3079.5,3079.3,0.002]
[1767995537458,0.001,3079.5,3079.0,0.002]
[1767995537758,0.96368296,3079.5,3079.0,0.002]
[1767995539454,0.96268296,3079.3,3078.7,8.37e-06]
[1767995541337,0.96268296,3079.2,3079.0,0.002]
[1767995541537,0.96268296,3079.2,3078.7,8.37e-06]
[1767995543876,4.21029869,3079.2,3078.7,8.37e-06]
[1767995544047,0.42110688,3079.3,3078.7,8.37e-06]
[1767995544665,1.38378984,3079.3,3078.7,8.37e-06]
[1767995545068,0.001,3079.5,3078.7,8.37e-06]
[1767995552188,0.96368296,3079.5,3078.7,0.25500837]
[1767995552890,0.97864016,3079.4,3079.0,0.002]
[1767995553089,1.75155876,3079.4,3079.0,0.002]
[1767995553678,0.001,3079.2,3079.0,0.002]
[1767995561359,0.97864016,3079.1,3078.7,8.37e-06]
[1767995565670,0.97864016,3079.1,3079.0,0.002]
[1767995566006,0.97864016,3079.1,3078.7,8.37e-06]
[1767995568319,0.97864016,3079.0,3078.7,8.37e-06]
[1767995569325,4.19277749,3079.2,3078.7,8.37e-06]
[1767995569533,0.94512797,3079.2,3078.7,8.37e-06]
[1767995577514,0.001,3079.2,3078.7,8.37e-06]
[1767995577914,0.001,3079.2,3079.0,0.002]
[1767995578116,1.38988428,3079.2,3078.7,8.37e-06]
[1767995578316,0.94512797,3079.2,3078.7,8.37e-06]
[1767995579271,0.001,3079.2,3078.7,8.37e-06]
[1767995585347,0.001,3079.2,3078.7,0.91260968]
[1767995589821,0.001,3079.2,3079.0,0.002]
[1767995592459,0.001,3079.2,3079.0,0.91460131]
[1767995600687,0.97905294,3080.0,3079.2,0.91260131]
[1767995601682,0.97985846,3080.2,3079.2,0.91260131]
[1767995602344,0.97985846,3080.2,3079.3,1.16760131]
[1767995602675,0.97985846,3080.2,3079.4,0.91260131]
[1767995604071,0.00080552,3080.2,3079.4,0.91260131]
[1767995609264,0.97985846,3080.2,3079.4,0.91260131]
[1767995609464,0.97985846,3080.2,3079.2,0.91260131]
[1767995609716,1.02196441,3080.2,3079.3,0.255]
[1767995609882,0.97905294,3080.1,3079.3,0.255]
[1767995611096,0.97905294,3079.9,3079.3,0.255]
[1767995612288,3.24675324,3080.0,3079.3,0.255]
[1767995612494,4.22580618,3080.0,3079.3,0.255]
[1767995612664,4.22580618,3080.0,3079.5,0.002]
[1767995612863,0.00080552,3080.2,3079.5,0.9144595]
[1767995613066,0.00080552,3080.2,3079.8,0.9124595]
[1767995613270,0.00080552,3080.2,3079.9,0.255]
[1767995620071,0.00080552,3080.2,3079.9,0.25163221]
[1767995620691,0.00080552,3080.2,3079.9,3.49848806]
[1767995621901,3.24776872,3080.8,3080.2,0.9124595]
[1767995621902,0.00180528,3080.8,3080.2,0.9124595]
[1767995622764,0.00180528,3080.8,3080.4,0.9124595]
[1767995622996,0.00180528,3080.8,3080.5,0.41588965]
[1767995625274,0.00180528,3080.8,3080.5,3.66209408]
[1767995625475,0.00180528,3080.8,3080.5,0.41588965]
[1767995625811,0.00180528,3080.8,3080.5,3.66211514]
[1767995627007,0.00180528,3080.8,3080.5,4.57457464]
[1767995627207,0.00180528,3080.8,3080.6,0.48295746]
[1767995632109,0.00180528,3080.8,3080.6,3.7290584]
[1767995632316,0.001,3081.1,3080.6,3.72905581]
[1767995634720,0.001,3081.1,3080.6,0.48295746]
[1767995635610,0.001,3081.1,3080.6,4.63672144]
[1767995635816,0.001,3081.1,3080.7,0.78829219]
[1767995637201,0.001,3081.1,3080.7,4.94195147]
[1767995637407,0.001,3081.1,3080.7,0.78829219]
[1767995637587,0.001,3080.8,3080.7,0.78829219]
[1767995638494,0.001,3081.1,3080.7,0.78829219]
[1767995638495,0.92205137,3081.1,3080.7,0.78829219]
[1767995638696,0.92205137,3081.1,3080.8,0.45173234]
[1767995639403,0.00066061,3081.4,3080.8,3.69761642]
[1767995639614,0.00066061,3081.4,3080.8,4.60528064]
[1767995640115,0.00066061,3081.4,3080.8,6.94352657]
[1767995640325,0.92105137,3081.5,3081.0,0.00083576]
[1767995640617,0.92105137,3081.5,3081.0,0.69527199]
[1767995643632,0.92105137,3081.5,3081.0,3.94097094]
[1767995643834,0.92105137,3081.5,3081.0,0.69527199]
[1767995644223,0.92105137,3081.5,3081.0,3.94096107]
[1767995644428,0.99515986,3081.7,3081.0,3.94096107]
[1767995644725,0.99515986,3081.7,3081.1,0.41959611]
[1767995645733,0.99515986,3081.7,3081.1,3.66517696]
[1767995648638,1.03645901,3082.8,3081.5,0.91668491]
[1767995648848,1.03645901,3082.5,3081.6,0.255]
[1767995649059,3.28591028,3082.8,3081.3,0.91749179]
[1767995649060,0.99435306,3082.3,3081.7,0.255]
[1767995650441,0.99435306,3082.3,3081.7,3.49995433]
[1767995650667,0.99435306,3082.3,3081.7,0.255]
[1767995651256,0.04210595,3082.4,3081.7,1.17168491]
[1767995651459,1.03645901,3082.6,3081.8,0.91668491]
[1767995651649,1.03645901,3082.6,3081.8,1.68285327]
[1767995652857,1.03645901,3082.6,3081.8,4.92767043]
[1767995653059,1.03645901,3082.6,3081.8,4.01098552]
[1767995653635,0.99435306,3082.5,3081.8,0.76616836]
[1767995654040,0.99435306,3082.5,3081.8,4.01101423]
[1767995654248,0.99435306,3082.5,3081.9,0.51826991]
[1767995657247,0.99435306,3082.5,3081.8,0.76616836]
[1767995658165,0.99435306,3082.5,3081.8,4.0110041]
[1767995659396,0.99435306,3082.5,3081.8,0.76616836]
[1767995659537,0.99435306,3082.5,3081.7,3.4999149]
[1767995659990,0.99435306,3082.5,3081.8,3.24484423]
[1767995661668,0.002,3082.2,3081.7,3.49990707]
[1767995664044,0.002,3082.2,3081.7,4.41659198]
[1767995665371,0.002,3082.2,3081.7,7.66155417]
[1767995665572,0.002,3082.2,3081.8,0.76615542]
[1767995666236,0.002,3082.2,3081.9,3.24475161]
[1767995666737,0.002,3082.2,3081.8,4.01096383]
[1767995669500,0.002,3082.2,3081.8,7.25582073]
[1767995669702,0.002,3082.2,3081.8,4.01096383]
[1767995670393,0.002,3082.2,3081.9,0.84275889]
[1767995670596,0.002,3082.2,3081.9,4.08749824]
[1767995672107,0.002,3082.2,3081.9,6.09017145]
[1767995672311,0.002,3082.2,3081.9,7.00685636]
[1767995672807,0.99635306,3082.5,3081.9,6.09017145]
[1767995673001,0.99635306,3082.5,3082.0,0.60901714]
[1767995674009,0.002,3082.2,3082.0,0.60901714]
[1767995676192,0.002,3082.5,3082.0,4.77663797]
[1767995676388,0.002,3082.5,3082.0,4.16762083]
[1767995676909,0.002,3082.5,3082.1,0.92299533]
[1767995677892,0.002,3082.5,3082.1,4.16745028]
[1767995679122,0.002,3082.5,3082.1,7.41199133]
[1767995679313,0.002,3082.5,3082.2,0.74119913]
[1767995679515,0.002,3082.5,3082.2,0.99619913]
[1767995680489,0.002,3082.5,3082.2,0.74119913]
[1767995680693,0.97957866,3082.5,3082.2,0.255]
[1767995682334,0.002,3082.5,3082.2,0.255]
[1767995683698,0.002,3082.5,3082.2,4.42239681]
[1767995684622,0.00080624,3082.9,3082.5,0.92299533]
[1767995684926,0.97838299,3083.3,3082.5,0.92380165]
[1767995685534,0.97838299,3083.3,3082.6,3.24401479]
[1767995685693,0.00080433,3083.3,3082.7,0.255]
[1767995686314,0.97838299,3083.3,3082.7,0.255]
[1767995689630,0.97838299,3083.3,3082.5,4.16788598]
[1767995689931,0.98067255,3083.2,3082.5,0.00080632]
[1767995690323,0.98067255,3083.2,3082.5,3.24492481]
[1767995691918,0.42315118,3083.3,3082.6,0.92024311]
[1767995692121,1.36171778,3083.3,3082.6,0.92024311]
[1767995692439,0.9385666,3083.2,3082.5,3.24492481]
[1767995694340,0.9385666,3083.1,3082.5,3.24492481]
[1767995697845,0.9385666,3083.1,3082.8,0.001]
[1767995698046,0.002,3083.0,3082.8,0.001]
[1767995700466,0.00080632,3082.9,3082.5,0.92024311]
[1767995701990,0.00080632,3082.9,3082.6,4.1642579]
[1767995702202,0.00080632,3082.9,3082.7,0.255]
[1767995704443,0.00080632,3082.9,3082.7,3.49888677]
[1767995704814,0.002,3083.0,3082.8,0.91497055]
[1767995705393,0.00080433,3083.3,3082.8,0.91497055]
[1767995706531,0.00080433,3083.3,3082.9,4.15866966]
[1767995709622,0.002,3083.0,3082.9,4.15866966]
[1767995709909,0.00080433,3083.3,3082.9,4.15866966]
[1767995710115,0.00080433,3083.3,3082.9,5.00104736]
[1767995714694,0.00080433,3083.3,3082.9,1.75734825]
[1767995715023,0.00080433,3083.3,3082.8,3.2437781]
[1767995715228,0.00080433,3083.3,3082.9,3.24369808]
[1767995719440,0.00080433,3083.3,3082.8,3.24377687]
[1767995721747,0.002,3083.0,3082.8,3.24377687]
[1767995721954,0.00080433,3083.3,3082.8,3.24377687]
[1767995722245,0.00080433,3083.3,3082.8,7.3299776]
[1767995722467,0.00080433,3083.3,3082.8,8.24494815]
[1767995723053,0.00080433,3083.3,3082.8,5.00114382]
[1767995725533,0.00080433,3083.3,3082.8,8.24494815]
[1767995725933,0.00080433,3083.3,3082.9,0.91497055]
[1767995726128,0.00080433,3083.3,3082.9,1.76496537]
[1767995726720,0.00080433,3083.3,3083.0,0.255]
[1767995734229,0.00080433,3083.3,3083.0,3.49859074]
[1767995734533,0.00080433,3083.3,3083.0,3.49853331]
[1767995736816,0.002,3083.5,3083.0,3.49853331]
[1767995736817,0.90534187,3083.4,3083.0,6.74212721]
[1767995737023,0.90534187,3083.4,3083.1,0.67421272]
[1767995739053,0.90534187,3083.4,3083.0,3.49855085]
[1767995740056,0.002,3083.5,3083.0,3.49855085]
[1767995740255,0.90734187,3083.5,3082.9,3.24443761]
[1767995740445,0.90734187,3083.5,3083.0,0.255]
[1767995741567,0.90734187,3083.5,3083.0,3.4985162]
[1767995741724,0.002,3083.6,3083.1,0.34993206]
[1767995742653,0.002,3083.8,3083.1,1.32588522]
[1767995742857,0.002,3083.8,3083.1,0.34993206]
[1767995742858,0.90534187,3083.7,3083.1,0.34993206]
[1767995743238,0.90534187,3083.7,3083.2,3.24338349]
[1767995743753,0.0028052,3083.9,3083.3,0.97595316]
[1767995743929,0.0028052,3083.9,3083.2,3.24338349]
[1767995743930,0.002,3084.0,3083.4,1.39788682]
[1767995744125,0.002,3084.1,3083.5,0.25580528]
[1767995744330,0.90734187,3084.1,3083.5,0.25580528]
[1767995745157,0.90734187,3084.1,3083.6,6.48592554]
[1767995745357,0.002,3084.1,3083.6,6.48592554]
[1767995745528,0.002,3084.1,3083.7,1.74772156]
[1767995746133,0.002,3084.1,3083.8,4.21864339]
[1767995746862,0.002,3084.1,3083.8,0.97595316]
[1767995747860,0.002,3084.1,3083.8,4.21865359]
[1767995748052,0.002,3084.1,3083.7,4.99053079]
[1767995748241,0.002,3084.1,3083.8,0.49905308]
[1767995750667,0.92095097,3083.8,3083.5,0.00080528]
[1767995750842,0.92095097,3083.8,3083.6,0.255]
[1767995751038,0.92095097,3083.8,3083.1,3.86]
[1767995751242,5.68362757,3083.9,3082.9,0.0008044]
[1767995751243,6.60457854,3083.4,3082.9,0.0008044]
[1767995751467,6.60457854,3083.4,3083.3,0.256]
[1767995752767,0.92095097,3083.4,3083.3,0.256]
[1767995758086,0.92095097,3083.4,3083.3,0.15642942]
[1767995758286,0.92095097,3083.6,3083.3,0.15642942]
[1767995758587,0.92095097,3083.5,3083.3,0.15642942]
[1767995759487,0.92095097,3083.5,3083.4,0.255]
[1767995760688,0.92095097,3083.5,3083.4,0.25381551]
[1767995769295,3.24286116,3083.7,3083.4,0.25381551]
[1767995769496,0.74875122,3083.7,3083.4,0.25381551]
[1767995769695,3.24350778,3083.9,3083.4,0.25381551]
[1767995769999,4.20259714,3083.9,3083.4,0.25381551]
[1767995770494,0.95908936,3083.8,3083.4,0.25381551]
[1767995772500,3.24350778,3083.9,3083.4,0.25381551]
[1767995772699,0.00080528,3083.9,3083.4,0.25381551]
[1767995772999,0.00080528,3083.9,3083.5,0.98463321]
[1767995774306,0.00080528,3083.9,3083.5,0.98463321]
[1767995777208,0.00080528,3083.9,3083.6,0.98463321]
[1767995780109,0.00280528,3083.9,3083.7,0.98463321]
[1767995781616,0.002,3084.1,3083.7,0.98463321]
[1767995781990,8.22e-06,3084.3,3083.8,0.98463321]
[1767995782210,4.20272166,3084.9,3084.0,0.98463321]
[1767995782586,3.24256067,3084.8,3084.0,0.98463321]
[1767995783297,3.24181407,3084.7,3084.0,0.98463321]
[1767995783686,3.24182203,3084.7,3084.0,0.98463321]
[1767995784110,3.24255275,3084.8,3084.0,0.98463321]
[1767995791818,0.0008072,3084.8,3084.3,0.001]
[1767995792023,0.0008072,3084.8,3084.4,0.255]
[1767995793517,0.0008072,3084.8,3084.3,0.001]
[1767995793518,0.91579713,3084.6,3084.3,0.001]
[1767995794721,3.24391671,3084.6,3084.3,0.001]
[1767995794924,3.24391671,3084.6,3083.8,0.255]
[1767995794925,0.91379713,3084.4,3083.8,0.255]
[1767995795133,0.91379713,3084.4,3083.5,0.00080536]
[1767995795797,0.95590308,3084.5,3083.6,0.99997486]
[1767995795992,0.91379713,3084.5,3083.6,0.99997486]
[1767995796523,0.91379713,3084.5,3083.6,1.44986505]
[1767995797024,3.24212164,3084.4,3083.6,1.44986505]
[1767995797226,4.15591877,3084.4,3083.6,1.44986505]
[1767995798621,4.15591877,3084.4,3083.7,0.99997486]
[1767995799020,3.59100859,3084.6,3083.7,0.99997486]
[1767995799324,3.59100859,3084.6,3083.7,1.4693466]
[1767995800538,0.91379713,3084.5,3083.7,1.4693466]
[1767995801098,4.15591877,3084.4,3083.7,0.99997486]
[1767995801928,0.91379713,3084.3,3083.5,0.00080536]
[1767995802624,0.91379713,3084.3,3083.5,3.24386974]
[1767995803225,0.91379713,3084.2,3083.5,0.00080536]
[1767995803730,3.24223193,3084.3,3083.5,1.00078022]
[1767995804030,3.24223193,3084.3,3083.9,0.001]
[1767995804841,4.15595012,3084.4,3083.9,0.001]
[1767995806034,0.255,3084.3,3083.9,0.001]
[1767995807617,3.49723403,3084.3,3083.9,0.001]
[1767995808924,0.255,3084.3,3083.9,1.00097486]
[1767995809641,3.49723646,3084.3,3083.9,0.001]
[1767995815452,3.49723646,3084.3,3084.2,0.001]
[1767995815747,0.001,3084.2,3083.9,0.001]
[1767995825775,0.001,3084.2,3083.9,0.9232186]
[1767995826076,0.002,3084.9,3083.9,0.9232186]
[1767995826077,3.24366007,3084.9,3083.9,0.9232186]
[1767995826232,0.255,3084.7,3084.0,0.9222186]
[1767995826553,0.255,3084.7,3084.2,0.9222186]
[1767995827189,0.255,3084.7,3084.2,0.9232186]
[1767995838648,0.002,3084.4,3084.2,0.9232186]
[1767995843600,0.18354178,3084.7,3084.4,0.9222186]
[1767995843784,0.002,3084.7,3084.5,0.9222186]
[1767995843990,0.255,3084.6,3084.5,0.9222186]
[1767995846494,0.255,3084.6,3084.5,1.33865654]
[1767995847293,0.002,3084.7,3084.5,1.33865654]
[1767995847487,0.002,3084.7,3084.5,0.41643794]
[1767995848093,0.002,3084.7,3084.6,0.9222186]
[1767995848294,0.002,3084.7,3084.5,1.33865654]
[1767995848473,0.002,3084.7,3084.6,0.45807707]
[1767995848884,0.002,3085.0,3084.7,0.9222186]
[1767995849066,0.002,3085.2,3085.0,0.9222186]
[1767995851602,0.002,3085.2,3085.1,0.9222186]
[1767995852323,16.56,3086.5,3085.1,0.9222186]
[1767995852606,0.98914682,3086.7,3086.5,0.00080616]
[1767995852790,0.98914682,3086.7,3085.6,0.0008064]
[1767995854511,0.9256949,3086.5,3085.6,0.0008064]
[1767995854718,0.9256949,3086.4,3085.6,0.0008064]
[1767995855405,0.42076116,3086.5,3085.6,0.96171512]
[1767995855623,0.96780085,3087.1,3085.6,0.96171512]
[1767995855779,3.49532952,3086.9,3085.6,0.96171512]
[1767995856516,3.49532952,3086.9,3085.8,0.96090872]
[1767995857419,3.49532952,3086.9,3085.9,0.96090872]
[1767995858519,0.00080616,3086.9,3086.0,0.96090872]
[1767995858692,0.00080616,3086.9,3086.1,0.96090872]
[1767995858893,0.9256949,3086.8,3086.1,0.96090872]
[1767995859094,0.9256949,3086.8,3085.9,0.96090872]
[1767995859298,0.9256949,3086.8,3085.7,8.06161557]
[1767995859525,0.9256949,3086.7,3085.7,4.82090872]
[1767995859728,0.9256949,3086.6,3085.7,5.62716152]
[1767995859899,0.9256949,3086.6,3085.8,0.96090872]
[1767995860521,0.9256949,3086.6,3085.7,4.6662528]
[1767995860823,0.9256949,3086.5,3085.7,4.6662528]
[1767995861822,0.9256949,3086.5,3085.7,5.62716152]
[1767995862026,0.9256949,3086.5,3085.7,1.76716152]
[1767995862230,0.9256949,3086.4,3085.6,3.8608064]
[1767995862428,0.9256949,3086.4,3086.0,0.001]
[1767995863936,0.255,3086.3,3086.0,0.001]
[1767995865229,0.9256949,3086.2,3085.7,3.86]
[1767995865418,3.49513658,3086.3,3085.7,3.68562407]
[1767995865419,0.9256949,3086.0,3085.7,3.68562407]
[1767995867029,0.9256949,3085.8,3085.0,3.86]
[1767995867217,0.9256949,3085.8,3084.8,9.87970006]
[1767995867218,0.9256949,3085.7,3084.8,9.87970006]
[1767995867394,0.9256949,3085.7,3084.9,1.37397001]
[1767995867600,0.9256949,3085.7,3084.9,2.33487873]
[1767995868430,0.9256949,3085.7,3085.0,0.96090872]
[1767995870541,0.94743101,3085.3,3084.2,0.99773437]
[1767995870722,0.04210595,3085.4,3084.2,0.99773437]
[1767995870723,0.94743101,3085.1,3084.2,0.99773437]
[1767995871312,1.58932759,3085.1,3084.2,0.99773437]
[1767995871637,1.63143354,3085.1,3084.2,0.99773437]
[1767995871932,4.87288202,3085.1,3084.2,0.99773437]
[1767995874940,4.87288202,3085.1,3084.7,0.001]
[1767995875237,0.94743101,3085.0,3084.2,0.001]
[1767995875641,0.94743101,3085.0,3084.3,0.99673437]
[1767995875836,3.92545101,3085.1,3084.4,0.99754165]
[1767995876140,0.49007354,3085.0,3084.4,0.99754165]
[1767995876903,0.44007354,3085.0,3084.4,0.99754165]
[1767995877440,3.68157651,3085.0,3084.4,0.99754165]
[1767995879440,3.63157651,3085.0,3084.4,0.99754165]
[1767995879659,3.24150297,3085.0,3084.4,0.99754165]
[1767995881846,4.23097806,3085.1,3084.4,0.99754165]
[1767995886946,4.23097806,3085.1,3084.7,0.001]
[1767995888342,4.23097806,3085.1,3084.4,0.99754165]
[1767995888549,0.96159216,3085.0,3084.4,0.00080728]
[1767995889131,0.04210595,3085.1,3084.4,0.9178962]
[1767995889333,0.255,3085.2,3084.4,0.9178962]
[1767995891045,3.49628154,3085.2,3084.4,0.9178962]
[1767995891443,3.49628154,3085.2,3084.6,0.91708892]
[1767995892024,0.04210595,3085.1,3084.5,3.86]
[1767995892223,0.04210595,3085.1,3084.5,4.77708892]
[1767995893946,0.04210595,3085.1,3084.6,0.91708892]
[1767995896154,3.28350604,3085.1,3084.6,0.91708892]
[1767995897154,3.28350604,3085.1,3084.6,4.77708892]
[1767995898638,0.04210595,3085.1,3084.9,0.001]
[1767995898953,0.04210595,3085.1,3084.6,3.86]
[1767995900343,1.00369811,3085.1,3084.6,3.75552438]
[1767995900544,0.04210595,3085.1,3084.7,0.10357913]
[1767995900739,0.04210595,3085.1,3084.6,3.61493347]
[1767995901037,1.00369811,3085.1,3084.6,3.61493347]
[1767995901932,4.24509925,3085.1,3084.6,3.61493347]
[1767995903063,4.24509925,3085.1,3084.7,3.61493347]
[1767995903253,4.24509925,3085.1,3084.7,3.47130955]
[1767995903440,4.24509925,3085.1,3084.7,3.2702377]
[1767995903640,4.24509925,3085.1,3084.7,3.12661495]
[1767995903960,4.24509925,3085.1,3084.7,3.05979883]
[1767995904155,4.24509925,3085.1,3084.7,2.95957465]
[1767995904360,4.24509925,3085.1,3084.7,2.8760545]
[1767995904562,4.24509925,3085.1,3084.7,2.79253435]
[1767995904862,4.24509925,3085.1,3084.7,2.65890211]
[1767995905025,4.24509925,3085.1,3084.7,2.60491092]
[1767995905230,0.96159216,3085.0,3084.7,2.60491092]
[1767995905644,3.28350709,3085.1,3084.7,1.60491047]
[1767995906762,0.04210595,3085.1,3084.7,1.60491047]
[1767995906961,4.45797593,3085.2,3084.7,1.60491047]
[1767995906962,3.49628316,3085.2,3084.7,1.60491047]
[1767995907167,0.96159216,3085.1,3084.7,1.60491047]
[1767995907343,3.49628316,3085.2,3084.8,0.91708892]
[1767995907666,3.49628316,3085.2,3084.8,0.83524576]
[1767995907851,3.49628316,3085.2,3084.8,0.77858177]
[1767995908053,3.49628316,3085.2,3084.8,0.73450801]
[1767995908264,3.49628316,3085.2,3084.8,0.6715427]
[1767995908469,3.49628316,3085.2,3084.8,0.62746502]
[1767995908638,3.49628316,3085.2,3084.8,0.59597995]
[1767995908964,3.49628316,3085.2,3084.8,0.51411486]
[1767995909269,3.49628316,3085.2,3084.8,0.42594615]
[1767995909460,3.49628316,3085.2,3084.8,0.41335008]
[1767995910177,3.49628316,3085.2,3084.7,1.60491047]
[1767995910472,0.002,3084.8,3084.7,2.52199939]
[1767995910673,0.002,3084.8,3084.7,3.16019933]
[1767995913472,0.002,3084.8,3084.7,2.52199939]
[1767995916073,0.002,3084.8,3084.7,1.60491047]
[1767995918081,0.002,3084.8,3084.7,2.57933862]
[1767995918580,0.002,3084.8,3084.7,1.60491047]
[1767995921866,0.002,3084.8,3084.7,2.57933862]
[1767995929194,0.002,3084.8,3084.7,1.60491047]
[1767995930890,3.49629581,3085.2,3084.7,2.24321413]
[1767995930891,4.1826532,3085.2,3084.7,2.24321413]
[1767995931097,0.94134219,3085.1,3084.7,1.60491047]
[1767995933792,4.43741932,3085.4,3084.7,2.52303657]
[1767995934276,0.002,3084.8,3084.7,1.60491047]
[1767995934683,0.002,3084.8,3084.4,0.00080728]
[1767995935283,0.002,3084.8,3084.4,0.91893338]
[1767995935869,0.002,3084.8,3084.4,0.00080728]
[1767995940289,0.002,3084.8,3084.4,0.91893338]
[1767995940488,0.002,3084.8,3084.4,0.00080728]
[1767995946326,0.002,3084.8,3084.7,0.001]
[1767995946533,0.97776069,3084.8,3084.4,0.00080728]
[1767995947433,0.97776069,3084.8,3084.4,0.93585135]
[1767995947434,0.002,3084.8,3084.4,0.93585135]
[1767995947603,0.002,3084.8,3084.4,2.06398828]
[1767995948691,0.002,3084.8,3084.4,5.30605864]
[1767995949317,0.002,3084.8,3084.5,0.93504407]
[1767995954420,0.002,3084.8,3084.6,0.93504407]
[1767995954618,0.002,3084.8,3084.7,1.3527475]
[1767995956454,0.002,3084.8,3084.7,0.93504407]
[1767995958933,0.002,3084.8,3084.7,0.93604407]
[1767995968053,0.002,3084.8,3084.7,0.001]
[1767995969755,2.09e-06,3085.1,3084.7,0.93604407]
[1767995970254,0.093,3085.4,3084.9,0.93504407]
[1767995970426,0.97576069,3085.7,3084.9,0.93504407]
[1767995971236,0.97576069,3085.7,3085.0,4.17653515]
[1767995971755,6.65659302,3085.7,3085.0,4.17653515]
[1767995972359,5.93583233,3085.8,3085.1,0.93504407]
[1767995972534,0.255,3085.8,3085.1,0.93504407]
[1767995972855,5.93583233,3085.8,3085.1,0.93504407]
[1767995973154,6.87092969,3085.8,3085.1,0.93504407]